Cogmind - Beta 16 @@@ ROGUE MODE // 2025.12.10 @ 21:29:24 Player: Jiber Result: Destroyed by GT-GUL(R) with Subdweller Laser Performance ------------- Evolutions (0) 0 Regions Visited (3) 600 Robots Destroyed (31) 155 Value Destroyed (740) 740 Prototype IDs (1) 20 Alien Tech Used (0) 0 Bonus (0) 0 TOTAL SCORE: 1515 Bonus ------- None Cogmind --------- Core Integrity 0/250 Matter 295/300 Energy 200/200 System Corruption 0% Temperature Cool (6) Movement Walking (125) Location -10/Subcaves Parts ------- > --- POWER (1) -------- Subdweller Power Source > --- PROPULSION (2) --- Aluminum Leg Titanium Leg > --- UTILITY (2) ------ (None) > --- WEAPON (2) ------- Heavy Hammer Heavy Mace > --- INVENTORY (5) ---- Improved Heat Sink Trap Scanner Hardlight Generator Barrage Gun Rocket Launcher Peak State ------------ > --- POWER ------------ Light Nuclear Core > --- PROPULSION ------- Aluminum Leg Titanium Leg > --- UTILITY ---------- Decoy Drone Bay > --- WEAPON ----------- EM Pulse Cannon Heavy Mace > --- INVENTORY -------- Improved Heat Sink Trap Scanner Hardlight Generator Rocket Launcher Heavy Hammer [Rating: 28] Favorites ----------- Power Light Nuclear Core Engine Light Ion Engine Power Core Light Nuclear Core Propulsion Aluminum Leg Leg Aluminum Leg Utility Small Storage Unit Device Decoy Drone Bay Storage Small Storage Unit Protection Medium Armor Plating Weapon Heavy Hammer Energy Gun EM Pulse Gun Energy Cannon EM Pulse Cannon Impact Weapon Heavy Hammer Build | -11 -10 -10 -10 ------- Run | Yrd Mat Min Sub Slots Evolved . | . . . . Power . | . . . . Propulsion . | . . . . Utility . | . . . . Weapon . | . . . . Parts Attached 26 | 7 6 8 5 Power 5 | 1 1 2 1 Engine 3 | 1 1 . 1 Core 2 | . . 2 . Reactor . | . . . . Propulsion 5 | 2 1 2 . Treads . | . . . . Leg 5 | 2 1 2 . Wheel . | . . . . Hover . | . . . . Flight . | . . . . Utility 10 | 2 2 3 3 Device 4 | 1 . 2 1 Storage 2 | 1 . 1 . Processor . | . . . . Hackware . | . . . . Protection 4 | . 2 . 2 Artifact . | . . . . Weapon 6 | 2 2 1 1 Energy Gun 2 | 2 . . . Energy Cannon 1 | . . . 1 Ballistic Gun . | . . . . Ballistic Cannon . | . . . . Launcher . | . . . . Special Weapon . | . . . . Impact Weapon 3 | . 2 1 . Slashing Weapon . | . . . . Piercing Weapon . | . . . . Special Melee Weapon . | . . . . Unidentified Prototypes 1 | . . 1 . Parts Lost 7 | . 1 2 4 Power 2 | . . 2 . Propulsion 1 | . 1 . . Utility 3 | . . . 3 Weapon 1 | . . . 1 Highest Loss Streak 2 | . 1 1 2 To Critical Strikes . | . . . . Average Backups 5 | 1 4 5 4 Power . | . . . . Propulsion . | . . . . Utility 2 | . 1 2 2 Weapon 2 | . 2 2 1 Tool/Special . | . . . . Unused Backups 9 | . . 5 4 Power 2 | . . 2 . Propulsion 1 | . . 1 . Utility 3 | . . 1 2 Weapon 3 | . . 1 2 Tool/Special . | . . . . Average Slot Usage (%) 90 | . 96 91 87 Engine 5 | . 14 3 4 Core 7 | . . 8 9 Leg 27 | . 25 28 28 Device 8 | . 3 7 12 Storage 5 | . 14 7 . Protection 6 | . 10 6 3 Energy Cannon 2 | . . . 6 Impact Weapon 24 | . 24 28 21 Peak Build Rating 28 | 7 10 27 28 Average Rating 17 | 5 9 18 21 On Entrance 11 | . 7 10 27 Avg Prop Armor Cover (%) . | . . . . Naked Turns . | . . . . Heaviest Build 29 | 14 23 25 29 Greatest Support 27 | 20 20 27 27 Greatest Overweight (x) 2 | . 2 1 1 Average Overweight (x) . | . . . . Largest Inventory Capacity 15 | 8 8 15 5 Average Capacity 6 | 7 8 6 5 Most Carried 8 | 5 6 8 5 Average Carried 5 | 1 4 6 4 Final Capacity 8 | 8 8 5 5 Final Carried 5 | 1 5 5 5 Class Distribution -------------------- 100% | Mutant Dominant Class ---------------- Mutant | -10/Materials Mutant | -10/Mines Mutant | -10/Subcaves Resources | -11 -10 -10 -10 ----------- Run | Yrd Mat Min Sub Matter Collected 490 | 248 72 110 60 Remotely . | . . . . Salvage Created 938 | 72 180 431 255 Parts 35 | 4 4 14 13 Haulers Intercepted . | . . . . Recyclers Shooed . | . . . . Parts Field Recycled . | . . . . Retrieved Matter . | . . . . Parts Self-Destructed 2 | . . . 2 Prevented . | . . . . Parts Restored . | . . . . Kills | -11 -10 -10 -10 ------- Run | Yrd Mat Min Sub Combat Hostiles Destroyed 27 | . 6 15 6 Melee 13 | . 2 9 2 Classes Destroyed 6 | 2 3 . 1 Tunneler 1 | 1 . . . Recycler 2 | 1 . 1 . Operator 1 | . 1 . . Swarmer 12 | . 3 9 . Grunt 9 | . 3 6 . Subdweller 6 | . . . 6 Best Kill Streak 6 | 2 6 2 2 Combat Bots Only 6 | . 6 2 2 Max Kills in Single Turn 1 | 1 1 1 1 Gunslinging . | . . . . Exploded . | . . . . Melee 1 | . 1 1 1 Uniques/NPCs Destroyed . | . . . . Combat | -11 -10 -10 -10 -------- Run | Yrd Mat Min Sub Hostile Shots Fired 175 | . 48 67 60 Missed 44 | . 9 12 23 Hits 131 | . 39 55 37 Projectile 131 | . 39 55 37 Critical Strikes 2 | . . 1 1 Damage Taken 1798 | 38 338 600 822 Core 265 | 38 23 55 149 Absorbed by Shields . | . . . . Core Remaining (%) 84 | 84 . . . Volleys Fired 13 | 11 . . 2 Largest 2 | 2 . . 1 Hottest 80 | 80 . . 63 Shots Fired 24 | 22 . . 2 Gun 22 | 22 . . . Cannon 2 | . . . 2 Launcher . | . . . . Special . | . . . . Kinetic . | . . . . Thermal 11 | 11 . . . Explosive . | . . . . Electromagnetic 13 | 11 . . 2 Robot Hit Streak 2 | 2 . . . Robot Miss Streak 2 | 2 . . 1 Penetration Max . | . . . . Secondary Targets . | . . . . Shots Hit Robots 64 | 8 12 25 19 Core Hits 14 | 3 2 7 2 Critical Kills 3 | . . 2 1 Critical Parts Destroyed 5 | . 3 1 1 Critical Strikes 11 | 1 3 3 4 Corrupt 1 | 1 . . . Smash 10 | . 3 3 4 Melee Attacks 85 | . 19 41 25 Impact 85 | . 19 41 25 Slashing . | . . . . Piercing . | . . . . Sneak Attacks 5 | . 2 2 1 Combat Hostiles 2 | . . 1 1 Follow-up Attacks 16 | . 4 10 2 Damage Inflicted 2573 | 145 556 1058 814 Guns 98 | 98 . . . Cannons . | . . . . Explosions 47 | 47 . . . Melee 2428 | . 556 1058 814 Ramming . | . . . . Kinetic . | . . . . Thermal 79 | 79 . . . Explosive . | . . . . Electromagnetic 66 | 66 . . . Impact 2428 | . 556 1058 814 Slashing . | . . . . Piercing . | . . . . Highest Corruption . | . . . . Average Corruption . | . . . . Corruption Purged . | . . . . Corruption Blocked . | . . . . Overload Shots . | . . . . Overflow Damage 617 | 16 206 304 91 Projectiles . | . . . . Explosions 16 | 16 . . . Melee 601 | . 206 304 91 Knockbacks 11 | . 3 4 4 Impact 11 | . 3 4 4 Kinetic . | . . . . Secondary . | . . . . Self-Inflicted Damage 38 | 38 . . . Shots 1 | 1 . . . Rammed . | . . . . Targets Rammed . | . . . . Kicked . | . . . . Crushed . | . . . . Highest Temperature 210 | 210 . . 2 Average Temperature 100 | 103 . . 2 Received Heat Transfer 396 | . 66 192 138 Siege Activations . | . . . . Martial Activations . | . . . . Shielding Activations . | . . . . Robots Disrupted . | . . . . Combat Hostiles . | . . . . Robots Corrupted 14 | . 4 6 4 Combat Hostiles 14 | . 4 6 4 Parts Fried 19 | . 4 9 6 Impact Corruptions 30 | . 9 14 7 Robots Melted . | . . . . Combat Hostiles . | . . . . Parts Melted . | . . . . Heat Transferred 125 | 125 . . . Parts Sabotaged . | . . . . Parts Stolen . | . . . . Parts Stripped . | . . . . Power Chain Reactions 1 | 1 . . . Alert | -11 -10 -10 -10 ------- Run | Yrd Mat Min Sub Maximum Alert Level . | . . . . Low Security (%) 100 | 100 100 100 . Level 1 . | . . . . Level 2 . | . . . . Level 3 . | . . . . Level 4 . | . . . . Level 5 . | . . . . High Security . | . . . . Max Security . | . . . . Peak Influence 100 | 10 100 83 . Initial 8 | . . 8 . Average 25 | 1 27 26 . Influence Increases 585 | 10 150 425 . Destroy 0b10 Robot/C 420 | . 120 300 . Destroy 0b10 Robot/NC 20 | 10 5 5 . Destroy Leader 80 | . 20 60 . Successful Hack 5 | . 5 . . Lose Combat Pursuer 60 | . . 60 . Influence Decreases 585 | 10 128 378 69 Entered New Map 51 | . . 14 37 Time Decay 504 | 10 118 344 32 Lost Part 30 | . 10 20 . Squads Dispatched 2 | . 2 . . Investigation 1 | . 1 . . Extermination . | . . . . Reinforcement 1 | . 1 . . Assault . | . . . . Garrison . | . . . . Intercept . | . . . . Searches Triggered . | . . . . Construction Impeded . | . . . . Haulers Reinforced . | . . . . Active Scanning Responses . | . . . . Cargo Convoy Interrupts . | . . . . Stealth | -11 -10 -10 -10 --------- Run | Yrd Mat Min Sub Distress Signals 1 | . 1 . . Communications Jammed . | . . . . Distress Signals . | . . . . Times Spotted 39 | . 8 19 12 Peak Tracking Total 4 | . 4 3 3 Tactical Retreats 5 | . . 3 2 Traps | -11 -10 -10 -10 ------- Run | Yrd Mat Min Sub Traps Triggered 1 | . 1 . . Indirectly . | . . . . Trap Hack Attempts . | . . . . Triggered . | . . . . Disarmed . | . . . . Reprogrammed . | . . . . Reused . | . . . . Traps Extracted . | . . . . Installed . | . . . . Triggered . | . . . . Machines | -11 -10 -10 -10 ---------- Run | Yrd Mat Min Sub Machines Disabled . | . . . . Max in Single Turn . | . . . . Machines Repaired . | . . . . Machines Dismantled . | . . . . Machines Sabotaged . | . . . . Overloaded Fab Kills . | . . . . Hacking | -11 -10 -10 -10 --------- Run | Yrd Mat Min Sub Machines Accessed 5 | . 3 2 . Terminals 3 | . 3 . . Fabricators . | . . . . Repair Stations . | . . . . Recycling Units . | . . . . Scanalyzers . | . . . . Garrison Access . | . . . . Total Hacks 9 | . 7 2 . Successful 4 | . 2 2 . Failed 5 | . 5 . . Catastrophic . | . . . . Database Lockouts . | . . . . Manual 4 | . 4 . . Terminals 7 | . 7 . . Fabricators . | . . . . Repair Stations . | . . . . Recycling Units . | . . . . Scanalyzers . | . . . . Garrison Access . | . . . . Terminal Hacks 2 | . . 2 . Open Door 2 | . . 2 . Fabricator Hacks . | . . . . Repair Station Hacks . | . . . . Recycling Unit Hacks . | . . . . Scanalyzer . | . . . . Garrison Access Hacks . | . . . . Unauthorized Hacks 2 | . 2 . . Terminals 2 | . 2 . . Botnet 2 | . 2 . . Fabricators . | . . . . Repair Stations . | . . . . Recycling Units . | . . . . Scanalyzers . | . . . . Garrison Access . | . . . . Data Cores Recovered . | . . . . Used . | . . . . Hacking Detections 1 | . 1 . . Full Trace Events 1 | . 1 . . Feedback Events . | . . . . Feedback Blocked . | . . . . Robot Schematics Acquired . | . . . . Robots Built . | . . . . Authchips . | . . . . Time . | . . . . Total Robot Build Rating . | . . . . Part Schematics Acquired . | . . . . Parts Built . | . . . . Authchips . | . . . . Time . | . . . . Total Part Build Rating . | . . . . Part Studies Acquired . | . . . . Parts Repaired . | . . . . Time . | . . . . Parts Recycled . | . . . . Recycled Matter . | . . . . Retrieved Matter . | . . . . Retrieved Components . | . . . . Parts Scanalyzed . | . . . . Part Schematics Acquired . | . . . . Parts Damaged . | . . . . Bothacking | -11 -10 -10 -10 ------------ Run | Yrd Mat Min Sub Used RIF Installer . | . . . . Robots Hacked . | . . . . Non-combat . | . . . . Combat . | . . . . Robot Hacks Applied . | . . . . Relay Couplers Released . | . . . . Fabnet Peak Effective % . | . . . . Robots Rewired . | . . . . Allies Hacked . | . . . . Hacks Repelled . | . . . . Allies | -11 -10 -10 -10 -------- Run | Yrd Mat Min Sub Total Allies . | . . . . Largest Group . | . . . . Highest-Rated Group . | . . . . Highest-Rated Ally . | . . . . Total Orders . | . . . . Ally Attacks . | . . . . Total Damage . | . . . . Kills . | . . . . Allies Corrupted . | . . . . Allies Melted . | . . . . Intel | -11 -10 -10 -10 ------- Run | Yrd Mat Min Sub Active Infowar (turns) 289 | 21 109 . 159 Optics 159 | . . . 159 Seismic 130 | 21 109 . . Robot Analysis Total . | . . . . Derelict Logs Recovered 2 | . . 2 . Drone Launches 16 | . . . 16 Drone Recoveries . | . . . . Exploration | -11 -10 -10 -10 ------------- Run | Yrd Mat Min Sub Turns Passed 3025 | 85 514 1296 1130 Spaces Moved 1685 | 39 252 801 593 Core 12 | 12 . . . Treads . | . . . . Legs 1673 | 27 252 801 593 Wheels . | . . . . Hover . | . . . . Flight . | . . . . Fastest Speed 50 | 50 120 120 125 Average Speed 156 | 98 177 146 166 Slowest Speed 260 | 120 260 190 195 Overloaded Moves . | . . . . Propulsion Burnouts . | . . . . Robots Hopped . | . . . . Potential Cave-ins . | . . . . Cave-ins Triggered . | . . . . Exploration Rate (%) 52 | 5 45 99 59 Regions Visited 3 Branch Regions 2 Pre-discovered Areas 1 | . . 1 . Known Exits Taken . | . . . . Unknown Exits Taken 3 | 1 1 1 . Scrap Searched 1 | . . 1 . Spaces Dug 1 | . . . 1 Terrain Destroyed 3 | 2 . . 1 Melee 1 | . . . 1 Projectile . | . . . . AOE 2 | 2 . . . Terrain Rammed . | . . . . Walls Destroyed . | . . . . Machines Disabled . | . . . . Actions | -11 -10 -10 -10 --------- Run | Yrd Mat Min Sub Total 1926 | 63 291 878 694 Wait 82 | . 11 7 64 Move 1682 | 38 251 800 593 Hop . | . . . . Pick Up 30 | 7 7 14 2 Fast Attach 5 | 1 . 1 3 Attach 12 | 6 1 3 2 Detach 1 | . . . 1 Swap 13 | . 5 6 2 Drop 21 | . 2 17 2 Fire 13 | 11 . . 2 Melee 67 | . 14 30 23 Ram . | . . . . Kick . | . . . . Crush . | . . . . Escape Stasis . | . . . . Rewire . | . . . . Trap . | . . . . Miscellaneous . | . . . . Route ------- -11/Scrapyard -10/Materials -10/Mines (discovered 4 exits: [*Mat x2] / [*Exi] / [*Sub]) -10/Subcaves (discovered 1 exit: [*Mat]) History --------- Turn | Location | Event 26 | -11/Scrapyard | Discovered new exit (range 15) 86 | -11/Scrapyard | Entered Materials 311 | -10/Materials | Build established: Mutant 579 | -10/Materials | Discovered new exit (range 7) 600 | -10/Materials | Entered Mines 795 | -10/Mines | Found a Scrap Suit stashed away for nefarious purposes 978 | -10/Mines | Received a Rocket Launcher from a helpful Derelict 1141 | -10/Mines | Met a Derelict who couldn't figure out how to use a Trap Extractor 1281 | -10/Mines | Found the Drone Emporium 1292 | -10/Mines | Found Prototype Device 1294 | -10/Mines | Identified Decoy Drone Bay 1315 | -10/Mines | Discovered new exit (range 8) 1344 | -10/Mines | Discovered new exit (range 10) 1408 | -10/Mines | Learned location of Zion (-6) 1433 | -10/Mines | Found a hidden stash of uninstalled traps 1529 | -10/Mines | Deemed a non-threat by the Exiles lab entrance 1529 | -10/Mines | Discovered new exit (range 5) 1598 | -10/Mines | Discovered new exit (range 5) 1896 | -10/Mines | Entered Subcaves 2056 | -10/Subcaves | Core integrity fell below 50% 2071 | -10/Subcaves | Discovered new exit (range 70) 2125 | -10/Subcaves | Lost 4 allies 2342 | -10/Subcaves | A swath of the cavern ceiling suddenly collapsed 2637 | -10/Subcaves | Shifting Twisted Machinery released Barrage Gun 2637 | -10/Subcaves | Shifting Twisted Machinery released Battle Cannon 2985 | -10/Subcaves | Core integrity fell below 20% 3026 | -10/Subcaves | Destroyed by GT-GUL(R) with Subdweller Laser Last Messages --------------- effect. 02985_ 4U-QFJ(R) suffers critical hit (Smash). 02985_ Hvy. Hammer follow-up attack on 4U-QFJ(R). 02985_ Destroyed Sub. Laser. 02985_ 4U-QFJ(R) system corrupted by crushing effect. 02986_ 4U-QFJ(R) system terminally corrupted. 02986_ Sub. Power Source fried. 02990_ Subatomizers dissect the Corrupted Sub. Optics. 02994_ Scrap Shield destroyed. 02997_ Acquired Scrap Shield. 02998_ Critical hit (Destroy). 03004_ MD-0H1(R) suffers critical hit (Smash). 03009_ MD-0H1(R) affixes Scrap Shield Fragment to Scrap Shield. 03012_ Scrap Shield destroyed. 03015_ GT-GUL(R) affixes Scrap Shield Fragment to Scrap Shield. Map ----- +----------------------------------------------------+ | ?????????????????????????????????????????????????? | | ?????????????????????????????????????????????????? | | ?????????????????????????????????????????????????? | | ?????????????????????????????????????????????????? | | ?????????????????????????????????????????????????? | | ?????????????????????????????????????????????????? | | ?????????????????????????????????????????????????? | | ?????????????????????????????????????????????????? | | ???????????????????????###??##???????????????????? | | ?????????????????????? ?? #???????????????????? | | ???????????????????? ?? #####???????????????? | | ???????????????????# ?? ????????????????? | | ???????????????????" ## ?????????????????? | | ???????????????????" ??????????????????? | | ???????????????????" " ???????????????????? | | ????????????????????" "" #???????????????????? | | ?????????????????????"""""" #???????????????????? | | ????????????????????????#" #????????????????????? | | ????????????????????????# ##????????????????????? | | ????????????????????????#&&#?????????????????????? | | ???????????????????????##&%##????????????????????? | | ???????????????????????#&!! #????????????????????? | | ???????????????????????# & #????????????????????? | | ???????????????????????# ##????????????????????? | | ???????????????????????##&R #????????????????????? | | ???????????????????????##@R##????????????????????? | | ??????????????????????## #????????????????????? | | ??????????????????????#;# #########?????????????? | | ??????????????????????### #" ##????????????? | | ??????????????????????## """ ???????????? | | ??????????????????????#"" """"" ???????????? | | ??????????????????????# "##"" ""### ??????##?????? | | ??????????????????????# ?##"""""####????# #?????? | | ??????????????????????# ??# ##?## ##????? | | ??????????????????????# ??# ### ##???? | | ??????????????????????## ??#" ## #???? | | ???????????????????????#"""""""### ####???? | | ???????????????????????#"" """####"" ##??????? | | ???????????????????????#"" #?#" ##??????? | | ???????????????????????# ## ##?????? | | ????? ????????????????# #### #?????? | | ???? ?????????????????# ##?## #?????? | | ??## ??????????????????#" ###?## ##?????? | | ## #??????????????????#"" ####### #??????? | | ? ##?????????????????##"#?## ##??????? | | # ???????????????????#??# ##???????? | | ????????????????????????#" ### ##???????? | | #?????????????????????????##???## ###?????? | | #??#####?????????????????????????# ##????? | | ### #?????????????????????????## #????? | +----------------------------------------------------+ Best States ------------- Heat Dissipation 25 Energy Generation 15 Energy Capacity 250 Matter Stores 300 Matter Capacity 300 Sight Range 21 Terrain Scan Density 10 Armor Coverage 800 Evasion (%) 55 Item Schematics ----------------- None Robot Schematics ------------------ None Fabricated ------------ Nothing Repaired ---------- Nothing Studied --------- None Alien Tech Used ----------------- None Achievements -------------- Release The Drones! Challenges ------------ None Game ------ Seed ArmoredFusionLog Manual? 0 Play Time 00:19:42 Cumulative 42.1 hours Start 2025.12.10 @ 19:52:59 End 2025.12.10 @ 21:29:24 Sessions 3 Manual Loads 0 Difficulty Rogue Special Mode None Game No. 57 Rogue 57 Adventurer 0 Explorer 0 Win Type - Total 0 Types 0/0/0/0/0/0/0/0/0/0 Lore% 17 Gallery% 35 Achievement% 22 Wizard Run 0 Options --------- Layout 1 ASCII 0 Keyboard 0 Movement Mouse Keybinds 0 Fullscreen 2 Font 32/SmallcapsGlow Map View 50x35 Zoom Use 0% Tactical HUD 1 Map Filters NONE Filters NONE Steam 1 RUN: 2ea3f118-a7b1-4032-a2a6-4c2132b00cc1